Workbook

Sheet AgroRNA_dsRNA_ciscena05-05-2016
B1: NANODROP MEASUREMENTS | F1: PREPARATION OF dsRNA LEAF SPRAY
B2: Sample ID | C2: ng/ul | D2: 260/280 | E2: 260/230 | F2: orig. conc. [ug/ul] | G2: amount in 149 ml [ug] | H2: larvae/leaf | I2: ul for 10 ug/larva | J2: 2x spray V for 1 leaf [ul] | K2: n leaves | L2: dsrna for n leaves [ul] | M2: dH2O for n leaves [ul] | N2: conc in spray [ug/ul] | O2: tot spray V [ml]
A3: 1) | B3: egfp dsRNA 50x | C3: 100.11 | D3: 2.39 | E3: 2.63 | F3: =C3*50/1000 -> 5.0055 | G3: =F3*149 -> 745.8195 | H3: 10 | I3: =H3*10/F3 -> 19.97802417 | J3: 168 | K3: 30 | L3: =I3*K3 -> 599.3407252 | M3: =J3*K3 -> 5040 | N3: =L3*F3/SUM(L3:M3) -> 0.5319770779 | O3: =(L3+M3)/1000 -> 5.639340725
A4: 2) | B4: vATPaseE dsRNA 50x | C4: 105.96 | D4: 2.14 | E4: 2.59 | F4: =C4*50/1000 -> 5.298 | G4: =F4*149 -> 789.402 | H4: 10 | I4: =H4*10/F4 -> 18.87504719 | J4: 244 | K4: 30 | L4: =I4*K4 -> 566.2514156 | M4: =J4*K4 -> 7320 | N4: =L4*F4/SUM(L4:M4) -> 0.3804088713 | O4: =(L4+M4)/1000 -> 7.886251416
A5: 3) | B5: alas dsRNA 50x | C5: 119.62 | D5: 2.12 | E5: 2.51 | F5: 5.981 | G5: 891.169 | H5: 10 | I5: =H5*10/F5 -> 16.7196121 | J5: 264 | K5: 30 | L5: =I5*K5 -> 501.5883631 | M5: =J5*K5 -> 7920 | N5: 0.3562273375 | O5: 8.421588363
A6: 4) | B6: JHBP-like dsRNA 50x | C6: 117.88 | D6: 2.15 | E6: 2.54 | F6: 5.894 | G6: 878.206 | H6: 10 | I6: =H6*10/F6 -> 16.96640652 | J6: 264 | K6: 30 | L6: =I6*K6 -> 508.9921955 | M6: =J6*K6 -> 7920 | N6: 0.3559144356 | O6: 8.428992195
A7: 5) | B7: mesh dsRNA 50x | C7: 112.33 | D7: 2.11 | E7: 2.57 | F7: 5.6165 | G7: 836.8585 | H7: 10 | I7: =H7*10/F7 -> 17.80468263 | J7: 244 | K7: 30 | L7: =I7*K7 -> 534.1404789 | M7: =J7*K7 -> 7320 | N7: 0.3819641383 | O7: 7.854140479
